fUST/lending_fUST_20250821
["ID","MTS","AMOUNT","RATE_DAILY","PERIOD"]
[380433272,1755761453148,-480.0,0.00022191,3]
[380433273,1755761453157,-480.0,0.00022191,3]
[380433274,1755761453166,-263.14563083,0.00022191,3]
[380433275,1755761453176,-158.26384925,0.00022191,3]
[380433276,1755761453184,-1284.97,0.00022191,3]
[380433277,1755761453194,-480.0,0.00022191,3]
[380433278,1755761453202,-502.32030562,0.00022191,3]
[380433279,1755761453212,-480.0,0.00022191,3]
[380433280,1755761453221,-480.0,0.00022191,3]
[380433281,1755761453230,-480.0,0.00022191,3]
[380433282,1755761453239,-480.0,0.00022191,3]
[380433283,1755761453248,-480.0,0.00022191,3]
[380433284,1755761453258,-515.19,0.00022191,3]
[380433285,1755761453267,-480.0,0.00022191,3]
[380433286,1755761453277,-444.31530037,0.00022191,3]
[380433287,1755761453286,-480.0,0.00022191,3]
[380433288,1755761453295,-480.0,0.00022191,3]
[380433289,1755761453304,-782.9,0.00022191,3]
[380433290,1755761453314,-480.0,0.00022191,3]
[380433291,1755761453323,-480.0,0.00022191,3]
[380433292,1755761453333,-480.0,0.00022191,3]
[380433293,1755761453343,-480.0,0.00022191,3]
[380433294,1755761453352,-480.0,0.00022191,3]
[380433295,1755761453362,-693.35,0.00022191,3]
[380433296,1755761453372,-480.0,0.00022191,3]
[380433297,1755761453382,-480.0,0.00022191,3]
[380433298,1755761453392,-480.0,0.00022191,3]
[380433299,1755761453401,-480.0,0.00022191,3]
[380433300,1755761453410,-480.0,0.00022191,3]
[380433301,1755761453420,-1163.94,0.00022191,3]
[380433302,1755761453429,-480.0,0.00022191,3]
[380433303,1755761453439,-480.0,0.00022191,3]
[380433304,1755761453449,-480.0,0.00022191,3]
[380433305,1755761453458,-3547.05,0.00022191,3]
[380433306,1755761453468,-480.0,0.00022191,3]
[380433307,1755761453478,-480.0,0.00022191,3]
[380433308,1755761453488,-480.0,0.00022191,3]
[380433309,1755761453498,-480.0,0.00022191,3]
[380433310,1755761453508,-600.18,0.00022191,3]
[380433311,1755761453519,-480.0,0.00022191,3]
[380433312,1755761453528,-480.0,0.00022191,3]
[380433313,1755761453538,-480.0,0.00022191,3]
[380433314,1755761453548,-480.0,0.00022191,3]
[380433315,1755761453558,-402.78934189,0.00022191,3]
[380433316,1755761453567,-480.0,0.00022191,3]
[380433317,1755761453577,-480.0,0.00022191,3]
[380433318,1755761453586,-480.0,0.00022191,3]
[380433319,1755761453596,-480.0,0.00022191,3]
[380433320,1755761453606,-480.0,0.00022191,3]
[380433321,1755761453615,-480.0,0.00022191,3]
[380433322,1755761453625,-597.59143134,0.00022191,3]
[380433323,1755761453635,-480.0,0.00022191,3]
[380433324,1755761453644,-480.0,0.00022191,3]
[380433325,1755761453654,-480.0,0.00022191,3]
[380433326,1755761453664,-480.0,0.00022191,3]
[380433327,1755761453678,-480.0,0.00022191,3]
[380433328,1755761453690,-3772.48,0.00022191,3]
[380433329,1755761453701,-480.0,0.00022191,3]
[380433330,1755761453712,-480.0,0.00022191,3]
[380433331,1755761453722,-507.30040105,0.00022191,3]
[380433332,1755761453732,-480.0,0.00022191,3]
[380433333,1755761453742,-480.0,0.00022191,3]
[380433334,1755761453754,-543.45,0.00022191,3]
[380433335,1755761453764,-480.0,0.00022191,3]
[380433336,1755761453773,-480.0,0.00022191,3]
[380433337,1755761453783,-5691.28,0.00022191,3]
[380433338,1755761453792,-480.0,0.00022191,3]
[380433339,1755761453802,-480.0,0.00022191,3]
[380433340,1755761453812,-480.0,0.00022191,3]
[380433341,1755761453822,-480.0,0.00022191,3]
[380433342,1755761453832,-480.0,0.00022191,3]
[380433343,1755761453843,-480.0,0.00022191,3]
[380433344,1755761453853,-480.0,0.00022191,3]
[380433345,1755761453863,-372.12282637,0.00022191,3]
[380433346,1755761453873,-480.0,0.00022191,3]
[380433347,1755761453884,-480.0,0.00022191,3]
[380433348,1755761453893,-776.43,0.00022191,3]
[380433349,1755761453903,-480.0,0.00022191,3]
[380433350,1755761453914,-480.0,0.00022191,3]
[380433351,1755761453923,-480.0,0.00022191,3]
[380433352,1755761453933,-480.0,0.00022191,3]
[380433353,1755761453943,-2009.75,0.00022191,3]
[380433354,1755761453953,-480.0,0.00022191,3]
[380433355,1755761453963,-480.0,0.00022191,3]
[380433356,1755761453973,-579.26764798,0.00022191,3]
[380433357,1755761453983,-649.85,0.00022191,3]
[380433358,1755761453993,-480.0,0.00022191,3]
[380433359,1755761454003,-480.0,0.00022191,3]
[380433360,1755761454012,-1962.98,0.00022191,3]
[380433361,1755761454022,-480.0,0.00022191,3]
[380433362,1755761454032,-480.0,0.00022191,3]
[380433363,1755761454041,-842.59,0.00022191,3]
[380433364,1755761454051,-480.0,0.00022191,3]
[380433365,1755761454061,-555.4,0.00022191,3]
[380433366,1755761454071,-151.13548053,0.00022191,3]
[380433367,1755761454080,-480.0,0.00022191,3]
[380433368,1755761454090,-480.0,0.00022191,3]
[380433369,1755761454099,-480.0,0.00022191,3]
[380433370,1755761454109,-1236.56,0.00022191,3]
[380433371,1755761454118,-480.0,0.00022191,3]
[380433372,1755761454128,-480.0,0.00022191,3]
[380433373,1755761454137,-2227.87,0.00022191,3]
[380433374,1755761454147,-480.0,0.00022191,3]
[380433375,1755761454156,-480.0,0.00022191,3]
[380433376,1755761454168,-718.85,0.00022191,3]
[380433377,1755761454178,-480.0,0.00022191,3]
[380433378,1755761454187,-480.0,0.00022191,3]
[380433379,1755761454197,-657.69,0.00022191,3]
[380433380,1755761454206,-480.0,0.00022191,3]
[380433381,1755761454216,-1136.58,0.00022191,3]
[380433382,1755761454226,-480.0,0.00022191,3]
[380433383,1755761454235,-2131.27,0.00022191,3]
[380433384,1755761454244,-575.88,0.00022191,2]
[380433385,1755761454254,-461.79165404,0.00022191,3]
[380433386,1755761454263,-501.64397661,0.00022191,3]
[380433387,1755761454273,-1885.14,0.00022191,3]
[380433388,1755761454282,-480.0,0.00022191,3]
[380433389,1755761454292,-480.0,0.00022191,3]
[380433390,1755761454302,-598.84,0.00022191,3]
[380433391,1755761454312,-480.0,0.00022191,3]
[380433392,1755761454322,-500.0,0.00022191,3]
[380433393,1755761454331,-480.0,0.00022191,3]
[380433394,1755761454341,-480.0,0.00022191,3]
[380433395,1755761454351,-6056.77,0.00022191,3]
[380433396,1755761454360,-1689.09,0.00022191,3]
[380433397,1755761454370,-480.0,0.00022191,3]
[380433398,1755761454379,-2579.42,0.00022191,3]
[380433399,1755761454389,-480.0,0.00022191,3]
[380433400,1755761454399,-480.0,0.00022191,3]
[380433401,1755761454408,-480.0,0.00022191,3]
[380433402,1755761454419,-480.0,0.00022191,3]
[380433403,1755761454429,-480.0,0.00022191,3]
[380433404,1755761454438,-1688.91,0.00022191,3]
[380433405,1755761454448,-802.14,0.00022191,3]
[380433406,1755761454458,-880.34,0.00022191,3]
[380433407,1755761454467,-1154.72,0.00022191,3]
[380433408,1755761454477,-480.0,0.00022191,3]
[380433409,1755761454486,-2673.44,0.00022191,3]
[380433410,1755761454496,-579.74783654,0.00022191,3]
[380433411,1755761454506,-480.0,0.00022191,3]
[380433412,1755761454516,-1935.11,0.00022191,3]
[380433413,1755761454526,-480.0,0.00022191,3]
[380433414,1755761454535,-480.0,0.00022191,3]
[380433415,1755761454544,-615.50801834,0.00022191,3]
[380433416,1755761454554,-1023.14,0.00022191,3]
[380433417,1755761454564,-480.0,0.00022191,3]
[380433418,1755761454574,-480.0,0.00022191,3]
[380433419,1755761454583,-1652.81,0.00022191,3]
[380433420,1755761454593,-480.0,0.00022191,3]
[380433421,1755761454602,-480.0,0.00022191,3]
[380433422,1755761454612,-480.0,0.00022191,3]
[380433423,1755761454621,-481.92880167,0.00022191,3]
[380433424,1755761454631,-480.0,0.00022191,3]
[380433425,1755761454641,-480.0,0.00022191,3]
[380433426,1755761454651,-480.0,0.00022191,3]
[380433427,1755761454660,-440.69476932,0.00022191,3]
[380433428,1755761454674,-8632.09,0.00022191,3]
[380433429,1755761454684,-5173.24,0.00022191,3]
[380433430,1755761454694,-480.0,0.00022191,3]
[380433431,1755761454704,-714.88,0.00022191,3]
[380433432,1755761454715,-480.0,0.00022191,3]
[380433433,1755761454725,-480.0,0.00022191,3]
[380433434,1755761454735,-1130.44,0.00022191,3]
[380433435,1755761454745,-1454.2,0.00022191,3]
[380433436,1755761454755,-481.49096009,0.00022191,3]
[380433437,1755761454765,-480.0,0.00022191,3]
[380433438,1755761454775,-480.0,0.00022191,3]
[380433439,1755761454785,-675.09,0.00022191,3]
[380433440,1755761454795,-480.0,0.00022191,3]
[380433441,1755761454805,-480.0,0.00022191,3]
[380433442,1755761454815,-480.0,0.00022191,3]
[380433443,1755761454825,-971.37,0.00022191,3]
[380433444,1755761454835,-480.0,0.00022191,3]
[380433445,1755761454845,-612.01,0.00022191,3]
[380433446,1755761454854,-480.0,0.00022191,3]
[380433447,1755761454864,-480.0,0.00022191,3]
[380433448,1755761454873,-3679.0,0.00022191,3]
[380433449,1755761454883,-480.0,0.00022191,3]
[380433450,1755761454893,-480.0,0.00022191,3]
[380433451,1755761454903,-273.72349842,0.00022191,3]
[380433452,1755761454913,-480.0,0.00022191,3]
[380433453,1755761454923,-480.0,0.00022191,3]
[380433454,1755761454932,-480.0,0.00022191,3]
[380433455,1755761454942,-480.0,0.00022191,3]
[380433456,1755761454952,-480.0,0.00022191,3]
[380433457,1755761454962,-480.0,0.00022191,3]
[380433458,1755761454972,-480.0,0.00022191,3]
[380433459,1755761454981,-1070.63,0.00022191,3]
[380433460,1755761454993,-2437.73,0.00022191,3]
[380433461,1755761455003,-480.0,0.00022191,3]
[380433462,1755761455013,-2754.46,0.00022191,3]
[380433463,1755761455022,-480.0,0.00022191,3]
[380433464,1755761455032,-480.0,0.00022191,3]
[380433465,1755761455042,-834.41,0.00022191,3]
[380433466,1755761455052,-480.0,0.00022191,3]
[380433467,1755761455062,-577.57,0.00022191,3]
[380433468,1755761455072,-480.0,0.00022191,3]
[380433469,1755761455082,-480.0,0.00022191,3]
[380433470,1755761455092,-1171.79,0.00022191,3]
[380433471,1755761455102,-480.0,0.00022191,3]
[380433472,1755761455113,-480.0,0.00022191,3]
[380433473,1755761455123,-480.0,0.00022191,3]
[380433474,1755761455133,-480.0,0.00022191,3]
[380433475,1755761455142,-480.0,0.00022191,3]
[380433476,1755761455152,-554.47,0.00022191,3]
[380433477,1755761455162,-480.0,0.00022191,3]
[380433478,1755761455172,-1229.53,0.00022191,3]
[380433479,1755761455182,-480.0,0.00022191,3]
[380433480,1755761455193,-467.59769003,0.00022191,3]
[380433481,1755761455203,-1230.31,0.00022191,3]
[380433482,1755761455213,-480.0,0.00022191,3]
[380433483,1755761455222,-1198.33,0.00022191,3]
[380433484,1755761455232,-3492.21,0.00022191,3]
[380433485,1755761455242,-480.0,0.00022191,3]
[380433486,1755761455251,-578.1,0.00022191,3]
[380433487,1755761455261,-480.0,0.00022191,3]
[380433488,1755761455271,-480.0,0.00022191,3]
[380433489,1755761455280,-480.0,0.00022191,3]
[380433490,1755761455289,-480.0,0.00022191,3]
[380433491,1755761455299,-480.0,0.00022191,3]
[380433492,1755761455309,-480.0,0.00022191,3]
[380433493,1755761455319,-3805.25,0.00022191,3]
[380433494,1755761455328,-7004.47,0.00022191,3]
[380433495,1755761455338,-1868.21,0.00022191,3]
[380433496,1755761455348,-227.44748184,0.00022191,3]
[380433497,1755761455358,-480.0,0.00022191,3]
[380433498,1755761455368,-788.74,0.00022191,3]
[380433499,1755761455377,-496.74,0.00022191,3]
[380433500,1755761455386,-480.0,0.00022191,3]
[380433501,1755761455396,-858.9,0.00022191,3]
[380433502,1755761455407,-963.65,0.00022191,3]
[380433503,1755761455416,-480.0,0.00022191,3]
[380433504,1755761455427,-430.41434644,0.00022191,3]
[380433505,1755761455437,-480.0,0.00022191,3]
[380433506,1755761455447,-480.0,0.00022191,3]
[380433507,1755761455456,-480.0,0.00022191,3]
[380433508,1755761455466,-589.17,0.00022191,3]
[380433509,1755761455476,-461.72875692,0.00022191,3]
[380433510,1755761455486,-879.96,0.00022191,3]
[380433511,1755761455497,-480.0,0.00022191,3]
[380433512,1755761455638,-480.0,0.00022191,2]
[380433513,1755761455664,-480.0,0.00022191,3]
[380433514,1755761455681,-389.33276191,0.00022191,3]
[380433515,1755761455690,-382.37892188,0.00022191,3]
[380433516,1755761455700,-480.0,0.00022191,3]
[380433517,1755761455709,-480.0,0.00022191,3]
[380433518,1755761455720,-1559.79,0.00022191,3]
[380433519,1755761455729,-1180.7,0.00022191,3]
[380433520,1755761455739,-6803.36,0.00022191,3]
[380433521,1755761455748,-480.0,0.00022191,3]
[380433522,1755761455757,-655.56,0.00022191,3]
[380433523,1755761455766,-480.0,0.00022191,3]
[380433524,1755761455775,-955.86,0.00022191,3]
[380433525,1755761455784,-480.0,0.00022191,3]
[380433526,1755761455793,-292.64197763,0.00022191,3]
[380433527,1755761455803,-480.0,0.00022191,3]
[380433528,1755761455812,-786.26,0.00022191,3]
[380433529,1755761455822,-480.0,0.00022191,3]
[380433530,1755761455831,-480.0,0.00022191,3]
[380433531,1755761455840,-480.0,0.00022191,3]
[380433532,1755761455850,-480.0,0.00022191,3]
[380433533,1755761455860,-480.0,0.00022191,3]
[380433534,1755761455869,-6797.69,0.00022191,3]
[380433535,1755761455878,-480.0,0.00022191,3]
[380433536,1755761455887,-480.0,0.00022191,3]
[380433537,1755761455897,-480.0,0.00022191,3]
[380433538,1755761455906,-480.0,0.00022191,3]
[380433539,1755761455916,-480.0,0.00022191,3]
[380433540,1755761455925,-480.0,0.00022191,3]
[380433541,1755761455935,-822.03,0.00022191,3]
[380433542,1755761455944,-671.85,0.00022191,3]
[380433543,1755761455953,-480.0,0.00022191,3]
[380433544,1755761455962,-480.0,0.00022191,3]
[380433545,1755761455972,-480.0,0.00022191,3]
[380433546,1755761455981,-2259.4,0.00022191,3]
[380433547,1755761455990,-480.0,0.00022191,3]
[380433548,1755761456000,-151.0,0.000222,5]
[380433549,1755761456009,-151.0,0.000222,5]
[380433550,1755761456019,-1028.99154201,0.00022228,2]
[380433551,1755761456028,-168.0,0.00022287,2]
[380433552,1755761456038,-151.0,0.000223,10]
[380433553,1755761456047,-741.40084876,0.00022322,2]
[380433554,1755761456057,-604.0,0.00022336,2]
[380433555,1755761456066,-500.0,0.00022354,2]
[380433556,1755761456076,-1341.94801699,0.00022365,2]
[380433557,1755761456086,-7221.15,0.000224,7]
[380433558,1755761456095,-12690.45384448,0.000224,7]
[380433559,1755761456105,-160.0,0.000224,7]
[380433560,1755761456114,-926.75,0.000224,7]
[380433561,1755761456124,-151.0,0.000224,10]
[380433562,1755761456133,-151.0,0.000224,7]
[380433563,1755761456143,-215.86710461,0.000224,7]
[380433564,1755761456152,-500.0,0.00022421,2]
[380433565,1755761456162,-1028.99154201,0.00022434,2]
[380433567,1755761456171,-480.0,0.00022465,3]
[380433568,1755761456181,-480.0,0.00022465,3]
[380433569,1755761456190,-480.0,0.00022465,3]
[380433570,1755761456199,-408.73799747,0.00022465,3]
[380433571,1755761456209,-480.0,0.00022465,3]
[380433572,1755761456218,-480.0,0.00022465,3]
[380433573,1755761456227,-480.0,0.00022465,3]
[380433574,1755761456237,-646.33,0.00022465,3]
[380433575,1755761456246,-480.0,0.00022465,3]
[380433576,1755761456255,-480.0,0.00022465,3]
[380433577,1755761456266,-234.41230106,0.00022465,3]
[380433578,1755761456275,-440.6740048,0.00022465,3]
[380433579,1755761456285,-480.0,0.00022465,3]
[380433580,1755761456295,-421.06906392,0.00022465,3]
[380433581,1755761456304,-480.0,0.00022465,3]
[380433582,1755761456314,-480.0,0.00022465,3]
[380433583,1755761456324,-442.69221194,0.00022465,3]
[380433584,1755761456333,-480.0,0.00022465,3]
[380433585,1755761456342,-480.0,0.00022465,3]
[380433586,1755761456351,-480.0,0.00022465,3]
[380433587,1755761456361,-480.0,0.00022465,3]
[380433588,1755761456370,-170.01866872,0.00022465,3]
[380433589,1755761456380,-480.0,0.00022465,3]
[380433590,1755761456389,-1017.02,0.00022465,3]
[380433591,1755761456399,-480.0,0.00022465,3]
[380433592,1755761456408,-480.0,0.00022465,3]
[380433593,1755761456419,-480.0,0.00022465,3]
[380433594,1755761456428,-480.0,0.00022465,3]
[380433595,1755761456437,-480.0,0.00022465,3]
[380433596,1755761456448,-480.0,0.00022465,3]
[380433597,1755761456458,-480.0,0.00022465,3]
[380433598,1755761456467,-480.0,0.00022465,3]
[380433599,1755761456477,-480.0,0.00022465,3]
[380433600,1755761456486,-410.17317928,0.00022465,3]
[380433601,1755761456495,-480.0,0.00022465,3]
[380433602,1755761456505,-460.0,0.00022465,3]
[380433603,1755761456515,-480.0,0.00022465,3]
[380433604,1755761456524,-480.0,0.00022465,3]
[380433605,1755761456533,-483.4366319,0.00022465,3]
[380433606,1755761456542,-480.0,0.00022465,3]
[380433607,1755761456551,-480.0,0.00022465,3]
[380433608,1755761456561,-480.0,0.00022465,3]
[380433609,1755761456570,-480.0,0.00022465,3]
[380433610,1755761456580,-480.0,0.00022465,3]
[380433611,1755761456589,-480.0,0.00022465,3]
[380433612,1755761456599,-480.0,0.00022465,3]
[380433613,1755761456608,-453.15940019,0.00022465,3]
[380433614,1755761456617,-480.0,0.00022465,3]
[380433615,1755761456626,-480.0,0.00022465,3]
[380433616,1755761456635,-480.0,0.00022465,3]
[380433617,1755761456645,-480.0,0.00022465,3]
[380433618,1755761456654,-480.0,0.00022465,3]
[380433619,1755761456666,-480.0,0.00022465,3]
[380433620,1755761456680,-480.0,0.00022465,3]
[380433621,1755761456690,-480.0,0.00022465,3]
[380433622,1755761456699,-480.0,0.00022465,3]
[380433623,1755761456709,-1439.02,0.00022465,3]
[380433624,1755761456719,-480.0,0.00022465,3]
[380433625,1755761456728,-480.0,0.00022465,3]
[380433626,1755761456737,-480.0,0.00022465,3]
[380433627,1755761456747,-480.0,0.00022465,3]
[380433628,1755761456757,-480.0,0.00022465,3]
[380433629,1755761456766,-517.79434674,0.00022465,3]
[380433630,1755761456775,-474.56175683,0.00022465,3]
[380433631,1755761456785,-620.21,0.00022465,3]
[380433632,1755761456795,-480.0,0.00022465,3]
[380433633,1755761456804,-480.0,0.00022465,3]
[380433634,1755761456813,-351.85666343,0.00022465,3]
[380433635,1755761456822,-480.0,0.00022465,3]
[380433636,1755761456831,-480.0,0.00022465,3]
[380433637,1755761456841,-522.11,0.00022465,3]
[380433638,1755761456851,-481.95038806,0.00022465,3]
[380433639,1755761456860,-480.0,0.00022465,3]
[380433640,1755761456870,-480.0,0.00022465,3]
[380433641,1755761456879,-480.0,0.00022465,3]
[380433642,1755761456888,-363.82551664,0.00022465,3]
[380433643,1755761456898,-480.0,0.00022465,3]
[380433644,1755761456907,-480.0,0.00022465,3]
[380433645,1755761456919,-480.0,0.00022465,3]
[380433646,1755761456929,-480.0,0.00022465,3]
[380433647,1755761456938,-480.0,0.00022465,3]
[380433648,1755761456947,-218.4495468,0.00022465,3]
[380433649,1755761456957,-480.0,0.00022465,3]
[380433650,1755761456966,-480.0,0.00022465,3]
[380433651,1755761456975,-480.0,0.00022465,3]
[380433652,1755761456985,-480.0,0.00022465,3]
[380433653,1755761456995,-480.0,0.00022465,3]
[380433654,1755761457004,-480.0,0.00022465,3]
[380433655,1755761457014,-480.0,0.00022465,3]
[380433656,1755761457023,-465.2,0.00022465,3]
[380433657,1755761457033,-480.0,0.00022465,3]
[380433658,1755761457042,-480.0,0.00022465,3]
[380433659,1755761457051,-480.0,0.00022465,3]
[380433660,1755761457060,-480.0,0.00022465,3]
[380433661,1755761457070,-769.07,0.00022465,3]
[380433662,1755761457079,-480.0,0.00022465,3]
[380433663,1755761457089,-480.0,0.00022465,3]
[380433664,1755761457097,-2623.22,0.00022465,3]
[380433665,1755761457107,-480.0,0.00022465,3]
[380433666,1755761457116,-666.58,0.00022465,3]
[380433667,1755761457126,-480.0,0.00022465,3]
[380433668,1755761457135,-747.31,0.00022465,3]
[380433669,1755761457144,-483.88,0.00022465,3]
[380433670,1755761457153,-480.0,0.00022465,3]
[380433671,1755761457162,-480.0,0.00022465,3]
[380433672,1755761457173,-480.0,0.00022465,3]
[380433673,1755761457183,-480.0,0.00022465,3]
[380433674,1755761457193,-480.0,0.00022465,3]
[380433675,1755761457202,-668.52,0.00022465,3]
[380433676,1755761457212,-480.0,0.00022465,3]
[380433677,1755761457221,-303.15853832,0.00022465,3]
[380433678,1755761457231,-485.78,0.00022465,3]
[380433679,1755761457240,-480.0,0.00022465,3]
[380433680,1755761457249,-480.0,0.00022465,3]
[380433681,1755761457258,-480.0,0.00022465,3]
[380433682,1755761457268,-480.0,0.00022465,3]
[380433683,1755761457277,-480.0,0.00022465,3]
[380433684,1755761457287,-480.0,0.00022465,3]
[380433685,1755761457296,-480.0,0.00022465,3]
[380433686,1755761457306,-480.0,0.00022465,3]
[380433687,1755761457316,-480.0,0.00022465,3]
[380433688,1755761457325,-480.0,0.00022465,3]
[380433689,1755761457335,-484.13,0.00022465,3]
[380433690,1755761457345,-1014.56,0.00022465,3]
[380433691,1755761457355,-480.0,0.00022465,3]
[380433692,1755761457364,-480.0,0.00022465,3]
[380433693,1755761457373,-405.8079313,0.00022465,3]
[380433694,1755761457383,-480.0,0.00022465,3]
[380433695,1755761457392,-480.0,0.00022465,3]
[380433696,1755761457401,-1000.0,0.00022465,3]
[380433697,1755761457410,-480.0,0.00022465,3]
[380433698,1755761457420,-480.0,0.00022465,3]
[380433699,1755761457430,-480.0,0.00022465,3]
[380433700,1755761457439,-907.15,0.00022465,3]
[380433701,1755761457448,-480.0,0.00022465,3]
[380433702,1755761457457,-480.0,0.00022465,3]
[380433703,1755761457467,-480.0,0.00022465,3]
[380433704,1755761457476,-480.0,0.00022465,3]
[380433705,1755761457485,-480.0,0.00022465,3]
[380433706,1755761457496,-1496.08,0.00022465,3]
[380433707,1755761457506,-480.0,0.00022465,3]
[380433708,1755761457515,-480.0,0.00022465,3]
[380433709,1755761457524,-480.0,0.00022465,3]
[380433710,1755761457534,-480.0,0.00022465,3]
[380433711,1755761457543,-926.22,0.00022465,3]
[380433712,1755761457553,-480.0,0.00022465,3]
[380433713,1755761457562,-480.0,0.00022465,3]
[380433714,1755761457571,-526.70901559,0.00022465,3]
[380433715,1755761457581,-615.99,0.00022465,3]
[380433716,1755761457591,-480.0,0.00022465,3]
[380433717,1755761457600,-602.68699998,0.00022465,3]
[380433718,1755761457609,-480.0,0.00022465,3]
[380433719,1755761457619,-708.86,0.00022465,3]
[380433720,1755761457628,-480.0,0.00022465,2]
[380433721,1755761457639,-480.0,0.00022465,3]
[380433722,1755761457648,-480.0,0.00022465,3]
[380433723,1755761457658,-480.0,0.00022465,3]
[380433724,1755761457669,-480.0,0.00022465,3]
[380433725,1755761457684,-480.0,0.00022465,3]
[380433726,1755761457694,-480.0,0.00022465,3]
[380433727,1755761457704,-480.0,0.00022465,3]
[380433728,1755761457715,-480.0,0.00022465,3]
[380433729,1755761457724,-480.0,0.00022465,3]
[380433730,1755761457734,-480.0,0.00022465,3]
[380433731,1755761457744,-480.0,0.00022465,3]
[380433732,1755761457754,-480.0,0.00022465,3]
[380433733,1755761457764,-495.31,0.00022465,3]
[380433734,1755761457774,-422.73946152,0.00022465,3]
[380433735,1755761457783,-480.0,0.00022465,3]
[380433736,1755761457793,-480.0,0.00022465,3]
[380433737,1755761457802,-480.0,0.00022465,3]
[380433738,1755761457812,-480.0,0.00022465,3]
[380433739,1755761457821,-480.0,0.00022465,3]
[380433740,1755761457830,-480.0,0.00022465,3]
[380433741,1755761457840,-480.0,0.00022465,3]
[380433742,1755761457849,-536.97,0.00022465,3]
[380433743,1755761457859,-480.0,0.00022465,3]
[380433744,1755761457868,-496.72,0.00022465,3]
[380433745,1755761457878,-480.0,0.00022465,3]
[380433746,1755761457887,-480.0,0.00022465,3]
[380433747,1755761457895,-480.0,0.00022465,3]
[380433748,1755761457905,-480.0,0.00022465,3]
[380433749,1755761457914,-480.0,0.00022465,3]
[380433750,1755761457923,-392.71681294,0.00022465,3]
[380433751,1755761457932,-480.0,0.00022465,3]
[380433752,1755761457941,-480.0,0.00022465,3]
[380433753,1755761457951,-480.0,0.00022465,3]
[380433754,1755761457960,-480.0,0.00022465,3]
[380433755,1755761457969,-480.0,0.00022465,3]
[380433756,1755761457978,-480.0,0.00022465,3]
[380433757,1755761457987,-480.0,0.00022465,3]
[380433758,1755761457996,-480.0,0.00022465,3]
[380433759,1755761458006,-480.0,0.00022465,3]
[380433760,1755761458016,-480.0,0.00022465,3]
[380433761,1755761458026,-480.0,0.00022465,3]
[380433762,1755761458035,-431.53447008,0.00022465,3]
[380433763,1755761458044,-480.0,0.00022465,3]
[380433764,1755761458054,-480.0,0.00022465,3]
[380433765,1755761458064,-480.0,0.00022465,3]
[380433766,1755761458073,-480.0,0.00022465,3]
[380433767,1755761458083,-791.33,0.00022465,3]
[380433768,1755761458092,-480.0,0.00022465,3]
[380433769,1755761458102,-480.0,0.00022465,3]
[380433770,1755761458112,-480.0,0.00022465,3]
[380433771,1755761458121,-480.0,0.00022465,3]
[380433772,1755761458130,-480.0,0.00022465,3]